bitfinex-derivatives/quotes_ETHF0:USTF0_20241007
["timestamp","ask_amount","ask_price","bid_price","bid_amount"]
[1728266856713,0.27923,2507.0,2506.6,3.2078]
[1728266857809,0.27922,2507.1,2506.6,3.2078]
[1728266858503,0.27919,2507.3,2506.9,3.2078]
[1728266859406,0.27917,2507.6,2506.9,3.2078]
[1728266859707,4.40616,2507.7,2506.9,3.48703]
[1728266860312,0.27917,2507.6,2506.9,3.48703]
[1728266860706,7.3348,2507.7,2506.9,3.2078]
[1728266860906,0.2792,2507.3,2506.9,3.2078]
[1728266862220,0.27919,2507.4,2506.9,3.2078]
[1728266862613,0.27917,2507.5,2506.9,3.2078]
[1728266862806,7.3348,2507.7,2506.9,3.2078]
[1728266863114,4.127,2507.7,2507.3,3.2078]
[1728266863515,4.40616,2507.7,2507.3,3.2078]
[1728266864117,0.27916,2507.7,2507.3,3.2078]
[1728266864522,0.27916,2507.6,2507.3,3.2078]
[1728266864817,0.27915,2507.7,2507.3,3.2078]
[1728266865022,1.3735234,2507.9,2507.3,3.2078]
[1728266865214,0.27916,2507.6,2507.3,3.2078]
[1728266865422,1.3735234,2507.9,2507.3,3.2078]
[1728266865929,0.27916,2507.7,2507.3,3.2078]
[1728266866424,1.3735234,2507.9,2507.3,3.2078]
[1728266866625,0.27916,2507.6,2507.3,3.2078]
[1728266866822,1.3735234,2507.9,2507.3,3.2078]
[1728266867022,0.27914,2507.8,2507.3,3.2078]
[1728266867524,0.27915,2507.7,2507.3,3.2078]
[1728266868225,0.27916,2507.7,2507.3,3.2078]
[1728266870123,0.27914,2507.8,2507.3,3.2078]
[1728266870533,0.27915,2507.7,2507.3,3.2078]
[1728266870828,1.3735234,2507.9,2507.3,3.2078]
[1728266871034,0.27914,2507.8,2507.3,3.2078]
[1728266871323,9.84826104,2508.3,2507.8,0.27913]
[1728266871324,5.72126104,2508.3,2507.8,0.27913]
[1728266871531,0.27907,2508.5,2508.0,3.2078]
[1728266872635,0.8558249,2508.7,2508.0,3.2078]
[1728266872843,10.09176104,2508.8,2508.0,3.2078]
[1728266872844,0.2791,2508.2,2508.0,3.2078]
[1728266873629,0.69763,2508.6,2508.0,3.2078]
[1728266873831,9.17126104,2508.7,2507.6,3.2078]
[1728266873832,0.2791,2508.1,2507.6,3.2078]
[1728266877633,0.20248674,2508.0,2507.2,4.406]
[1728266877839,0.27914,2507.8,2507.2,4.406]
[1728266878034,0.27913,2507.9,2507.2,4.6852]
[1728266878230,0.20190815,2507.9,2507.2,4.406]
[1728266878433,1.1605,2508.1,2507.2,4.406]
[1728266878628,0.27912,2508.0,2507.5,3.2078]
[1728266878835,0.19803758,2507.9,2507.5,3.2078]
[1728266879439,0.47716758,2507.9,2507.5,3.2078]
[1728266879635,0.27913,2507.9,2507.5,3.2078]
[1728266880240,0.27914,2507.8,2507.5,3.2078]
[1728266880439,0.2011899,2507.9,2507.2,4.406]
[1728266880440,0.27915,2507.7,2507.2,4.406]
[1728266880836,0.19680059,2507.8,2507.2,3.2078]
[1728266881138,8.7375,2508.1,2506.9,3.2078]
[1728266881139,0.27919,2507.4,2506.9,3.2078]
[1728266881444,3.2078,2507.6,2506.9,3.2078]
[1728266881445,0.27919,2507.3,2506.9,3.2078]
[1728266881739,0.2792,2507.3,2506.9,3.2078]
[1728266884941,0.27916,2507.6,2506.9,3.48703]
[1728266885138,0.27917,2507.6,2506.9,3.2078]
[1728266885342,44.25,2507.7,2506.9,3.2078]
[1728266885539,0.27918,2507.5,2506.9,3.2078]
[1728266886444,0.27918,2507.4,2506.9,3.2078]
[1728266887541,0.27918,2507.5,2506.9,3.2078]
[1728266887740,40.8,2507.7,2506.9,3.2078]
[1728266887741,0.27919,2507.4,2506.9,3.2078]
[1728266887935,40.8,2507.7,2506.9,3.48703]
[1728266888138,40.8,2507.7,2506.9,3.2078]
[1728266888545,0.27918,2507.5,2506.9,3.2078]
[1728266889042,0.27918,2507.4,2506.9,3.2078]
[1728266889247,0.27918,2507.5,2506.9,3.2078]
[1728266889550,0.27919,2507.4,2506.9,3.2078]
[1728266889947,44.0078,2507.7,2506.9,3.2078]
[1728266890141,0.27916,2507.6,2506.9,3.48704]
[1728266890547,0.27918,2507.5,2506.9,3.2078]
[1728266891149,0.27918,2507.4,2506.9,3.2078]
[1728266891347,0.27917,2507.6,2506.9,3.48704]
[1728266891539,44.0078,2507.7,2506.9,3.48704]
[1728266891745,0.27917,2507.5,2506.9,3.2078]
[1728266892140,44.0078,2507.7,2506.9,3.2078]
[1728266892141,0.27916,2507.6,2506.9,3.2078]
[1728266892341,0.27918,2507.5,2506.9,3.2078]
[1728266892537,0.27917,2507.6,2506.9,3.48704]
[1728266893045,0.27917,2507.6,2506.9,3.48703]
[1728266893639,0.27917,2507.5,2506.9,3.2078]
[1728266893836,3.2078,2507.7,2506.9,3.2078]
[1728266893837,0.2792,2507.3,2506.9,3.2078]
[1728266896346,0.2792,2507.3,2506.2,7.64]
[1728266896347,0.27925,2506.8,2506.3,3.2078]
[1728266896547,3.45,2507.1,2506.3,3.2078]
[1728266896750,0.27925,2506.8,2506.3,3.2078]
[1728266896947,4.7078,2507.1,2506.3,3.2078]
[1728266897147,3.2078,2506.9,2506.3,3.2078]
[1728266897448,4.7078,2507.1,2506.3,3.2078]
[1728266897649,0.27927,2506.7,2506.3,3.2078]
[1728266897955,0.27927,2506.6,2506.3,3.2078]
[1728266898550,2.8,2506.8,2506.3,3.2078]
[1728266898941,0.27928,2506.6,2506.3,3.2078]
[1728266899556,0.27929,2506.4,2506.3,3.2078]
[1728266900653,0.27934,2506.0,2505.9,3.2078]
[1728266901150,0.595,2506.4,2505.9,3.2078]
[1728266901452,0.27933,2506.1,2505.9,3.2078]
[1728266901750,0.27931,2506.3,2505.9,3.2078]
[1728266902650,0.2793,2506.4,2505.9,3.2078]
[1728266904069,0.27932,2506.2,2505.9,3.2078]
[1728266906576,3.8277,2506.4,2505.9,3.2078]
[1728266907161,0.27933,2506.1,2505.9,3.2078]
[1728266907656,3.8277,2506.4,2505.9,3.2078]
[1728266907657,0.27932,2506.2,2505.9,3.2078]
[1728266907849,0.27933,2506.1,2505.9,3.2078]
[1728266908045,0.27932,2506.2,2505.9,3.2078]
[1728266908548,0.27933,2506.2,2505.9,3.2078]
[1728266909459,0.27933,2506.1,2505.9,3.2078]
[1728266909958,41.4199,2506.4,2505.9,3.2078]
[1728266910358,0.27931,2506.3,2505.9,3.2078]
[1728266910550,41.4199,2506.4,2505.9,3.2078]
[1728266910551,0.27932,2506.2,2505.9,3.2078]
[1728266912755,0.6199,2506.4,2505.9,3.2078]
[1728266912958,0.2793,2506.4,2505.9,3.2078]
[1728266913352,4.01315982,2506.5,2505.9,3.2078]
[1728266913665,4.71137982,2506.5,2505.9,3.2078]
[1728266913861,0.27933,2506.1,2505.9,3.2078]
[1728266914366,0.27933,2506.1,2505.6,0.5873]
[1728266914565,0.27932,2506.2,2505.6,0.5873]
[1728266916566,0.27932,2506.2,2505.8,3.2078]
[1728266916760,47.04216,2506.7,2506.1,3.2078]
[1728266916761,40.8,2506.7,2506.1,3.2078]
[1728266917078,5.72126104,2507.7,2506.5,3.45]
[1728266917079,1.2297,2507.7,2506.5,3.45]
[1728266917256,0.19920517,2507.7,2507.3,0.27919]
[1728266917451,0.19920517,2507.7,2507.5,3.48696]
[1728266917657,0.19920517,2507.7,2507.6,0.6163]
[1728266917863,0.19920517,2507.7,2507.6,4.6043]
[1728266918062,0.2791,2508.2,2507.6,0.6163]
[1728266918259,2.2040443,2508.3,2507.6,0.6163]
[1728266918460,2.4831343,2508.3,2507.6,0.6163]
[1728266918664,1.65313615,2508.3,2507.6,0.6163]
[1728266918854,0.2791,2508.2,2507.6,0.6163]
[1728266919054,1.65313615,2508.3,2507.6,0.6163]
[1728266922367,0.27911,2508.1,2507.6,0.6163]
[1728266922560,1.37404615,2508.3,2507.6,0.6163]
[1728266922864,1.65313615,2508.3,2507.6,0.6163]
[1728266923167,1.65313615,2508.3,2507.8,3.2078]
[1728266923360,1.37404615,2508.3,2507.8,3.2078]
[1728266924162,1.65313615,2508.3,2507.8,3.2078]
[1728266924359,0.19854615,2508.3,2507.8,3.2078]
[1728266924559,8.92906104,2509.0,2507.8,3.2078]
[1728266924766,4.127,2510.0,2508.4,3.2078]
[1728266924767,0.279,2509.1,2508.4,3.2078]
[1728266924970,3.079,2509.1,2508.4,3.2078]
[1728266925460,0.19742145,2509.0,2508.4,3.2078]
[1728266925659,0.19742145,2509.0,2508.5,0.27905]
[1728266925862,0.19742145,2509.0,2508.7,3.2078]
[1728266926067,2.8,2509.3,2508.7,3.2078]
[1728266926466,0.27896,2509.4,2508.7,3.2078]
[1728266926670,0.27897,2509.3,2508.7,3.2078]
[1728266926863,45.826,2509.5,2508.7,3.2078]
[1728266927067,0.279,2509.1,2508.7,3.2078]
[1728266927673,0.27901,2509.0,2508.7,3.2078]
[1728266927868,0.20418505,2508.9,2508.7,3.2078]
[1728266929974,0.27909,2508.3,2507.5,7.3978]
[1728266930176,0.27907,2508.5,2507.8,3.2078]
[1728266930772,8.4376,2508.8,2507.8,3.2078]
[1728266930970,0.27907,2508.5,2507.8,3.2078]
[1728266931169,8.4376,2508.8,2507.8,3.2078]
[1728266931369,0.27907,2508.4,2507.8,3.2078]
[1728266931576,8.4376,2508.8,2507.8,3.2078]
[1728266931774,7.843,2508.8,2507.8,3.2078]
[1728266932069,7.843,2508.8,2507.6,0.6215]
[1728266932070,0.27905,2508.6,2508.1,3.2078]
[1728266932670,7.843,2508.8,2508.1,3.2078]
[1728266932876,0.27906,2508.5,2507.8,3.2078]
[1728266933570,0.27907,2508.4,2507.8,3.2078]
[1728266934169,0.27908,2508.3,2507.8,3.2078]
[1728266934372,0.2791,2508.2,2507.8,3.2078]
[1728266934866,0.6976,2508.7,2507.8,3.2078]
[1728266934867,7.843,2508.8,2507.8,3.2078]
[1728266935175,3.2078,2508.5,2507.8,3.2078]
[1728266935376,0.27913,2507.9,2507.8,3.2078]
[1728266935572,0.27913,2507.9,2507.6,0.6215]
[1728266936369,40.8,2508.3,2507.6,0.6215]
[1728266936370,0.5848,2508.2,2507.6,0.6215]
[1728266936574,0.27913,2507.9,2507.6,0.6215]
[1728266937381,0.27914,2507.8,2507.5,3.2078]
[1728266938282,4.66793778,2508.1,2507.5,3.2078]
[1728266938477,0.27914,2507.8,2507.5,3.2078]
[1728266939375,0.27916,2507.6,2507.5,3.2078]
[1728266940270,0.27916,2507.6,2507.2,0.5927]
[1728266940271,0.19454763,2507.6,2507.0,0.6157]
[1728266940474,0.27918,2507.5,2507.0,0.6157]
[1728266940677,0.19973097,2507.5,2507.0,0.6157]
[1728266940980,0.27915,2507.7,2507.0,0.6157]
[1728266941180,0.27917,2507.5,2507.0,0.6157]
[1728266941383,0.20136746,2507.5,2507.0,0.6157]
[1728266941581,0.27917,2507.6,2507.0,0.6157]
[1728266941770,0.47928016,2507.6,2507.0,0.6157]
[1728266943482,0.27918,2507.5,2507.0,0.6157]
[1728266943879,0.87868,2507.5,2507.0,0.6157]
[1728266944376,0.2792,2507.3,2506.9,3.2078]
[1728266944580,0.47729449,2507.3,2506.9,3.2078]
[1728266944779,0.19809449,2507.3,2506.9,3.2078]
[1728266944981,3.7971,2507.8,2506.9,3.2078]
[1728266945180,3.2078,2507.4,2506.9,3.2078]
[1728266945384,0.27922,2507.1,2506.7,0.5768]
[1728266945583,1.2341,2507.3,2506.7,0.5768]
[1728266945887,0.2792,2507.2,2506.7,0.5768]
[1728266946185,1.5133,2507.3,2506.7,0.5768]
[1728266946379,0.27921,2507.2,2506.7,3.7846]
[1728266948182,0.27925,2506.8,2506.7,3.2078]
[1728266948386,3.07926,2506.8,2506.4,3.2078]
[1728266948686,3.07925,2506.8,2506.4,3.2078]
[1728266949283,2.8,2507.0,2506.4,3.2078]
[1728266949480,2.8,2507.0,2506.5,0.5992]
[1728266949673,3.07923,2507.0,2506.5,0.5992]
[1728266950289,2.8,2507.0,2506.5,0.5992]
[1728266951086,3.07923,2507.0,2506.5,0.5992]
[1728266951485,2.8,2507.0,2506.5,0.5992]
[1728266952690,2.8,2506.8,2506.5,0.5992]
[1728266953779,2.8,2506.8,2506.4,3.2078]
[1728266953780,3.07925,2506.8,2506.4,3.2078]
[1728266954389,0.27927,2506.7,2506.4,3.2078]
[1728266954581,2.8,2506.6,2506.4,3.2078]
[1728266954980,4.0066,2506.6,2506.0,0.6088]
[1728266955182,2.8,2506.3,2506.0,0.6088]
[1728266955582,3.07931,2506.3,2506.0,0.6088]
[1728266955887,0.27932,2506.2,2505.9,3.2078]
[1728266956191,2.8,2506.1,2505.9,3.2078]
[1728266956379,3.07933,2506.1,2505.9,3.2078]
[1728266956576,0.48045477,2506.0,2505.9,3.2078]
[1728266957587,0.20111477,2506.0,2505.9,3.2078]
[1728266957780,0.27934,2506.0,2505.9,3.2078]
[1728266957981,0.47909724,2506.0,2505.9,3.2078]
[1728266958383,0.47909724,2506.0,2505.4,3.2078]
[1728266958384,13.39795724,2506.0,2505.4,3.2078]
[1728266958591,0.2794,2505.5,2505.1,3.2078]
[1728266958788,2.8,2505.2,2505.1,3.2078]
[1728266958983,2.8,2505.2,2504.8,1.2174]
[1728266959194,2.8,2505.0,2504.8,1.2174]
[1728266960789,2.8,2505.0,2504.7,3.2078]
[1728266960998,2.8,2504.8,2504.7,3.2078]
[1728266962290,2.8,2504.8,2504.7,3.0578]
[1728266963082,2.8,2505.0,2504.7,3.0578]
[1728266966987,0.47910724,2506.0,2504.9,2.8]
[1728266967191,2.8,2505.9,2505.5,3.2078]
[1728266967395,3.3907,2506.1,2505.5,3.48719]
[1728266967587,3.3907,2506.1,2505.5,3.2078]
[1728266967788,3.59248225,2506.1,2505.5,3.2078]
[1728266967995,3.87181225,2506.1,2505.5,3.806]
[1728266968297,3.67003,2506.1,2505.5,3.806]
[1728266968490,2.8,2505.8,2505.5,3.806]
[1728266970790,2.8,2505.6,2505.5,3.2078]
[1728266971392,2.8,2505.6,2505.1,3.2078]
[1728266971599,2.8,2505.6,2505.1,3.48724]
[1728266975903,2.8,2505.6,2505.2,0.27943]
[1728266976500,2.8,2505.6,2505.4,3.2078]
[1728266976698,3.58917736,2506.1,2505.4,3.2078]
[1728266976898,3.58917736,2506.1,2505.7,3.2078]
[1728266977303,3.67003,2506.1,2505.7,3.2078]
[1728266977898,3.67003,2506.1,2505.2,3.2078]
[1728266977899,2.8,2505.9,2505.2,3.2078]
[1728266978103,2.8,2505.6,2505.2,3.2078]
[1728266978705,3.07939,2505.6,2505.2,3.2078]
[1728266979305,2.8,2505.6,2505.2,3.2078]
[1728266980099,2.8,2505.8,2505.2,3.48723]
[1728266980501,0.5907,2506.1,2505.5,3.48719]
[1728266980900,2.8,2506.0,2505.5,3.48719]
[1728266981102,3.4135,2506.2,2505.5,3.2078]
[1728266981303,3.4135,2506.2,2505.8,3.2078]
[1728266981304,2.8,2506.2,2505.8,3.2078]
[1728266983102,2.8,2506.2,2506.1,3.2078]
[1728266985607,3.07932,2506.2,2506.1,3.2078]
[1728266986003,3.07932,2506.2,2505.8,3.2078]
[1728266986610,2.8,2506.0,2505.8,3.2078]
[1728266986800,2.8,2506.0,2505.6,1.2183]
[1728266988008,2.8,2506.0,2505.5,3.2078]
[1728266988211,2.8,2505.8,2505.5,3.2078]
[1728266989929,3.70796,2505.8,2505.5,3.2078]
[1728266990329,2.8,2505.6,2505.2,3.2078]
[1728266990925,2.8,2505.6,2505.2,3.48723]
[1728266993025,2.8,2505.6,2505.2,3.2078]
[1728266993222,3.70797,2505.8,2505.5,3.2078]
[1728266994032,3.70797,2505.8,2505.2,0.27942]
[1728266994222,3.70797,2505.8,2505.1,4.78403]
[1728266994431,3.70797,2505.8,2505.2,0.27943]
[1728266994932,3.70797,2505.8,2505.4,3.2078]
[1728266995128,3.70797,2505.8,2505.1,4.78403]
[1728266995334,3.70797,2505.8,2505.4,3.2078]
[1728266995931,3.4286,2505.8,2505.4,3.2078]
[1728266996131,3.70796,2505.8,2505.4,3.2078]
[1728266996532,0.6324,2506.0,2505.7,3.2078]
[1728266998941,0.19676217,2506.1,2505.7,3.2078]
[1728267001635,0.47609217,2506.1,2505.7,3.2078]
[1728267002250,0.19676217,2506.1,2505.7,3.2078]
[1728267002542,2.8,2505.9,2505.7,3.2078]
[1728267002737,2.8,2505.9,2505.4,3.2078]
[1728267002938,2.8,2505.6,2505.1,1.2968]
[1728267003134,3.07941,2505.4,2505.0,3.2078]
[1728267003931,2.8,2505.4,2505.0,3.2078]
[1728267004136,2.8,2505.4,2505.0,3.48724]
[1728267004344,3.40257148,2505.8,2505.3,3.2078]
[1728267004345,3.27414148,2505.8,2505.3,3.2078]
[1728267005341,2.99477148,2505.8,2505.3,3.2078]
[1728267005541,3.27413148,2505.8,2505.3,3.2078]
[1728267006040,2.99477148,2505.8,2505.3,3.2078]
[1728267006246,2.99477148,2505.8,2505.3,4.4148]
[1728267006748,3.27414148,2505.8,2505.3,4.4148]
[1728267006946,0.27937,2505.7,2505.3,4.4148]
[1728267007847,3.27414148,2505.8,2505.3,3.8059]
[1728267008343,2.99477148,2505.8,2505.3,3.8059]
[1728267008548,4.026,2506.0,2505.3,3.8059]
[1728267008842,3.07937,2505.8,2505.3,3.8059]
[1728267009041,1.42460051,2506.0,2505.3,3.2078]
[1728267009042,0.2794,2505.5,2505.3,3.2078]
[1728267009347,2.8,2505.6,2505.3,3.2078]
[1728267011144,4.026,2506.0,2505.3,7.199]
[1728267011341,2.8,2506.2,2505.7,3.48717]
[1728267011542,2.8,2506.2,2505.8,1.1921]
[1728267011842,2.8,2506.2,2505.8,1.47146]
[1728267012346,2.8,2506.2,2505.8,1.1921]
[1728267012844,2.8,2506.2,2505.8,1.47146]
[1728267013747,2.8,2506.2,2505.8,1.1921]
[1728267014146,2.8,2506.2,2506.0,3.2078]
[1728267015737,3.4063,2506.9,2506.1,3.9904]
[1728267015943,3.4063,2506.9,2506.5,3.2078]
[1728267016141,3.4063,2506.9,2506.5,3.48708]
[1728267016938,3.4063,2506.9,2506.5,3.2078]
[1728267017151,0.27926,2506.8,2506.5,3.2078]
[1728267017651,3.68554,2506.9,2506.5,3.2078]
[1728267018244,3.4063,2506.9,2506.5,3.2078]
[1728267018554,0.27926,2506.8,2506.5,3.2078]
[1728267019145,0.27926,2506.7,2506.5,3.2078]
[1728267019342,0.27925,2506.8,2506.5,3.2078]
[1728267020243,3.4063,2506.9,2506.5,3.2078]
[1728267020845,3.4063,2506.9,2506.5,3.48707]
[1728267021449,3.4063,2506.9,2506.5,3.2078]
[1728267021655,0.6063,2506.9,2506.5,3.2078]
[1728267021843,0.6063,2506.9,2506.5,3.48708]
[1728267022353,3.68554,2506.9,2506.5,3.2078]
[1728267023047,3.4063,2506.9,2506.5,3.2078]
[1728267023252,3.4063,2506.9,2506.0,0.27933]
[1728267023253,0.27929,2506.5,2506.0,0.27933]
[1728267023456,2.8,2506.6,2506.2,3.2078]
[1728267023648,0.27926,2506.8,2506.5,3.2078]
[1728267023649,2.8,2506.8,2506.5,3.2078]
[1728267023849,0.6063,2506.9,2506.5,3.2078]
[1728267025243,0.6063,2506.9,2506.5,3.8321]
[1728267025448,0.88554,2506.9,2506.5,3.8321]
[1728267027050,0.6063,2506.9,2506.5,3.8321]
[1728267027855,0.88554,2506.9,2506.5,3.8321]
[1728267028155,2.8,2507.7,2506.8,3.2078]
[1728267028350,2.8,2507.7,2507.1,3.2078]
[1728267028351,0.27916,2507.6,2507.1,3.2078]
[1728267028652,0.47740762,2507.6,2507.1,3.2078]
[1728267028853,3.07917,2507.5,2507.1,3.2078]
[1728267029354,3.07917,2507.5,2506.6,7.5813]
[1728267029355,2.8,2507.3,2506.7,3.2078]
[1728267029656,0.69788,2507.7,2506.7,3.2078]
[1728267029657,2.8,2507.0,2506.7,3.2078]
[1728267030349,3.07923,2507.0,2506.7,3.2078]
[1728267030545,2.8,2506.8,2506.7,3.2078]
[1728267032346,1.41311911,2507.2,2506.7,7.1974]
[1728267032347,4.0157,2507.2,2506.7,7.1974]
[1728267032547,4.0157,2507.2,2506.7,3.48706]
[1728267032852,4.0157,2507.2,2506.7,3.2078]
[1728267033051,2.8,2507.0,2506.7,3.2078]
[1728267035557,2.8,2506.8,2506.4,3.2078]
[1728267036548,2.8,2506.6,2506.4,3.2078]
[1728267036752,2.8,2506.6,2506.0,3.2078]
[1728267036753,0.27931,2506.3,2506.0,3.2078]
[1728267036950,6.0078,2506.6,2506.0,3.2078]
[1728267036951,2.8,2506.2,2506.0,3.2078]
[1728267037152,0.27933,2506.1,2506.0,3.2078]
[1728267037458,0.619,2506.1,2506.0,3.2078]
[1728267038750,10.80957726,2506.1,2505.7,3.2078]
[1728267038960,2.8,2505.8,2505.7,3.2078]
[1728267039257,2.8,2505.8,2505.1,3.2078]
[1728267039258,3.07936,2505.8,2505.1,3.2078]
[1728267039552,3.9904,2506.0,2505.1,3.2078]
[1728267039553,2.8,2505.5,2505.1,3.2078]
[1728267041650,4.0056,2505.7,2505.1,3.2078]
[1728267042049,4.28497,2505.7,2505.1,3.2078]
[1728267043165,4.28497,2505.7,2505.4,3.2078]
[1728267043362,2.8,2506.0,2505.4,3.2078]
[1728267043656,2.8,2506.0,2505.7,3.2078]
[1728267044155,3.4327,2507.0,2506.4,0.27929]
[1728267044357,3.4327,2507.0,2506.4,3.2078]
[1728267044561,3.4327,2507.0,2506.7,3.2078]
[1728267045155,3.71193,2507.0,2506.7,3.2078]
[1728267045556,3.4327,2507.0,2506.7,3.2078]
[1728267046355,0.6327,2507.0,2506.7,3.2078]
[1728267048059,0.27925,2506.8,2506.2,3.2078]
[1728267048562,0.6327,2507.0,2506.2,3.2078]
[1728267048756,0.27927,2506.6,2506.2,3.2078]
[1728267049066,0.6163,2506.5,2506.2,3.2078]
[1728267050870,0.8592,2506.4,2506.2,3.2078]
[1728267051356,4.8488,2506.4,2506.2,3.2078]
[1728267051966,4.26891,2506.3,2506.2,3.2078]
[1728267052261,4.26891,2506.3,2505.8,1.2514]
[1728267052464,0.27931,2506.3,2505.8,1.2514]
[1728267052656,0.27931,2506.3,2505.7,3.2078]
[1728267052657,0.5799,2506.4,2505.7,3.2078]
[1728267052854,0.27931,2506.3,2505.7,3.2078]
[1728267054371,0.5799,2506.4,2505.7,3.2078]
[1728267054670,0.27932,2506.2,2505.7,3.2078]
[1728267054868,0.20258643,2506.1,2505.7,3.2078]
[1728267055273,0.19960462,2506.0,2505.7,3.2078]
[1728267055467,0.27935,2506.0,2505.4,1.2249]
[1728267055662,3.45,2506.2,2505.3,3.2078]
[1728267055663,0.19744803,2506.1,2505.3,3.2078]
[1728267055866,0.6261,2505.9,2505.3,3.2078]
[1728267056062,0.6095,2505.8,2505.3,3.2078]
[1728267056571,0.88886,2505.8,2505.3,3.2078]
[1728267056766,0.6095,2505.8,2505.3,3.2078]
[1728267058976,1.0999068,2506.4,2505.6,3.48718]
[1728267059174,0.27931,2506.3,2505.6,3.48718]
[1728267059471,0.27931,2506.3,2505.7,1.1898]
[1728267060378,0.27932,2506.2,2505.7,1.1898]
[1728267061371,0.27933,2506.1,2505.6,3.2078]
[1728267061569,0.19472504,2506.0,2505.6,3.2078]
[1728267061770,3.1567,2506.5,2505.9,3.2078]
[1728267061965,0.6293,2506.5,2506.2,3.2078]
[1728267064380,0.84655793,2506.8,2506.2,3.2078]
[1728267064581,0.27928,2506.6,2506.2,3.2078]
[1728267064884,0.27929,2506.5,2506.2,3.2078]
[1728267065282,0.5982,2506.7,2506.1,1.2078]
[1728267065283,0.27929,2506.4,2506.1,0.5935]
[1728267065988,0.27929,2506.4,2506.1,3.8013]
[1728267068297,0.27931,2506.3,2506.1,3.8013]
[1728267068491,0.27931,2506.3,2506.1,3.2078]
[1728267068492,0.27932,2506.2,2506.1,3.2078]
[1728267068803,0.19523872,2506.1,2505.7,3.8246]
[1728267069296,0.47456872,2506.1,2505.7,3.8246]
[1728267069499,2.8,2506.1,2505.7,3.8246]
[1728267069687,2.8,2506.1,2505.7,0.6168]
[1728267069688,0.27936,2505.9,2505.7,0.6168]
[1728267069893,3.07936,2505.9,2505.4,3.2078]
[1728267070789,2.8,2505.9,2505.4,3.2078]
[1728267071098,3.07936,2505.9,2505.4,3.2078]
[1728267071788,0.27936,2505.8,2505.4,3.2078]
[1728267072088,3.0794,2505.5,2505.2,1.2492]
[1728267072394,2.8,2505.7,2505.3,3.2078]
[1728267072590,40.8,2505.8,2505.3,3.2078]
[1728267074093,3.07935,2505.9,2505.3,3.2078]
[1728267074397,0.27935,2505.9,2505.3,3.2078]
[1728267075194,0.27936,2505.9,2505.3,3.2078]
[1728267075897,12.65838104,2506.2,2505.6,3.2078]
[1728267076099,0.27933,2506.1,2505.7,0.6243]
[1728267076791,3.72932,2506.2,2505.7,0.6243]
[1728267077394,0.19986659,2506.1,2505.7,0.6243]
[1728267077701,0.47920659,2506.1,2505.7,0.6243]
[1728267077898,0.27934,2506.0,2505.7,0.6243]
[1728267078091,0.19986659,2506.1,2505.7,0.6243]
[1728267078292,0.27935,2505.9,2505.6,3.2078]
[1728267078701,1.10160117,2506.0,2505.6,3.2078]
[1728267079000,0.27935,2505.9,2505.6,3.2078]
[1728267079600,1.10160117,2506.0,2505.6,3.2078]
[1728267080093,1.10160117,2506.0,2505.7,3.2078]
[1728267080897,0.82226117,2506.0,2505.7,3.2078]
[1728267081405,0.27936,2505.8,2505.7,3.2078]
[1728267082106,0.27937,2505.8,2505.3,3.8111]
[1728267082402,0.82226117,2506.0,2505.3,3.8111]
[1728267082403,0.27939,2505.6,2505.3,3.8111]
[1728267083199,0.2794,2505.5,2505.3,3.8111]
[1728267083401,0.27944,2505.2,2504.9,7.3978]
[1728267083709,3.72945,2505.0,2504.9,3.2078]
[1728267083906,0.27947,2504.9,2504.6,1.1648]
[1728267084100,0.27947,2504.8,2504.6,1.1648]
[1728267084299,0.27947,2504.8,2504.5,3.2078]
[1728267084903,0.20104367,2504.7,2504.5,3.2078]
[1728267085303,0.27949,2504.7,2504.5,3.2078]
[1728267085607,0.19556956,2504.6,2504.5,3.2078]
[1728267085803,0.27949,2504.7,2504.5,3.2078]
[1728267086195,0.27948,2504.8,2504.5,3.2078]
[1728267086404,46.91146214,2505.0,2504.5,3.2078]
[1728267086605,46.34846,2505.0,2504.5,3.2078]
[1728267086905,46.069,2505.0,2504.5,3.2078]
[1728267087500,0.27944,2505.2,2504.5,3.2078]
[1728267087711,0.27944,2505.1,2504.6,0.6204]
[1728267088598,0.27944,2505.1,2504.7,0.6165]
[1728267088799,0.27943,2505.2,2504.7,0.6165]
[1728267089405,0.27943,2505.2,2504.8,3.2078]
[1728267089699,7.28409512,2505.3,2504.8,3.2078]
[1728267089899,4.6164,2505.3,2504.8,3.2078]
[1728267090102,0.27942,2505.3,2504.8,3.2078]
[1728267090401,6.5235,2505.7,2505.1,3.2078]
[1728267090703,6.46276382,2505.7,2505.1,3.2078]
[1728267091008,0.27942,2505.3,2505.1,3.2078]
[1728267091304,3.45,2505.6,2505.1,3.2078]
[1728267091506,0.27941,2505.4,2505.1,3.2078]
[1728267091715,3.45,2505.6,2505.1,3.2078]
[1728267091904,0.27938,2505.6,2505.1,3.2078]
[1728267092100,0.27938,2505.6,2505.2,0.5781]
[1728267092606,0.2794,2505.5,2505.2,0.5781]
[1728267093209,0.27939,2505.6,2505.2,0.5781]
[1728267093408,0.6127,2505.8,2505.4,3.2078]
[1728267093708,0.27937,2505.8,2505.4,3.2078]
[1728267093907,5.269,2505.9,2505.3,0.5802]
[1728267094108,0.27938,2505.7,2505.3,0.5802]
[1728267094309,5.269,2505.9,2505.3,0.5802]
[1728267094506,0.27939,2505.6,2505.3,0.5802]
[1728267096107,5.269,2505.9,2505.3,0.5802]